[Event "Titled Tuesday Blitz May 10 Late 2022"]
[White "Urbina Perez, Juan Antonio"]
[Black "Boidiya, Sidi"]
[WhiteFideId "2217368"]
[BlackFideId "19600100"]
[WhiteElo "2192"]
[BlackElo "2113"]
[Result "0-1"]
[Round "04"]
[TimeControl "180+1"]
[Date "2022.05.11"]
[WhiteClock "0:00:29"]
[BlackClock "0:01:28"]

1. e4 {[%clk 0:03:00]}  e6 {[%clk 0:02:59]} 2. d4 {[%clk 0:03:00]}  d5 {[%clk 0:02:59]} 3. Nd2 {[%clk 0:03:00]}  c5 {[%clk 0:02:57]} 4. exd5 {[%clk 0:02:59]}  Qxd5 {[%clk 0:02:56]} 5. dxc5 {[%clk 0:02:59]}  Bxc5 {[%clk 0:02:55]} 6. Ngf3 {[%clk 0:02:59]}  Nf6 {[%clk 0:02:54]} 7. Bb5+ {[%clk 0:02:55]}  Bd7 {[%clk 0:02:54]} 8. Bxd7+ {[%clk 0:02:54]}  Nbxd7 {[%clk 0:02:53]} 9. O-O {[%clk 0:02:53]}  O-O {[%clk 0:02:53]} 10. Nb3 {[%clk 0:02:50]}  Bb6 {[%clk 0:02:51]} 11. Qxd5 {[%clk 0:02:44]}  Nxd5 {[%clk 0:02:52]} 12. c3 {[%clk 0:02:42]}  N7f6 {[%clk 0:02:51]} 13. h3 {[%clk 0:02:33]}  Rfd8 {[%clk 0:02:50]} 14. Re1 {[%clk 0:02:32]}  Rac8 {[%clk 0:02:48]} 15. Bg5 {[%clk 0:02:32]}  h6 {[%clk 0:02:48]} 16. Bh4 {[%clk 0:02:31]}  Nf4 {[%clk 0:02:46]} 17. Ne5 {[%clk 0:02:21]}  g5 {[%clk 0:02:37]} 18. Bg3 {[%clk 0:02:19]}  N6h5 {[%clk 0:02:37]} 19. Bxf4 {[%clk 0:02:11]}  Nxf4 {[%clk 0:02:38]} 20. Rad1 {[%clk 0:02:03]}  f6 {[%clk 0:02:31]} 21. Nf3 {[%clk 0:01:53]}  e5 {[%clk 0:02:24]} 22. Nc1 {[%clk 0:01:48]}  Kf7 {[%clk 0:02:21]} 23. Kf1 {[%clk 0:01:44]}  h5 {[%clk 0:02:17]} 24. Nd2 {[%clk 0:01:33]}  Rd7 {[%clk 0:02:01]} 25. Ne4 {[%clk 0:01:28]}  Rcd8 {[%clk 0:02:01]} 26. Rxd7+ {[%clk 0:01:27]}  Rxd7 {[%clk 0:02:02]} 27. g3 {[%clk 0:01:11]}  Nxh3 {[%clk 0:01:49]} 28. Kg2 {[%clk 0:01:11]}  g4 {[%clk 0:01:50]} 29. Nb3 {[%clk 0:01:03]}  f5 {[%clk 0:01:47]} 30. Nec5 {[%clk 0:01:03]}  Bxc5 {[%clk 0:01:44]} 31. Nxc5 {[%clk 0:01:04]}  Rd2 {[%clk 0:01:44]} 32. Rxe5 {[%clk 0:00:57]}  Rxf2+ {[%clk 0:01:43]} 33. Kh1 {[%clk 0:00:57]}  h4 {[%clk 0:01:38]} 34. Re3 {[%clk 0:00:42]}  f4 {[%clk 0:01:29]} 35. gxf4 {[%clk 0:00:29]}  g3 {[%clk 0:01:28]} 0-1


[Site "https://www.chess.com"]

[Event "Titled Tuesday Blitz May 10 Late 2022"]
[White "Vujic, Mihailo"]
[Black "Hansen, Eric"]
[WhiteFideId "918873"]
[BlackFideId "2606771"]
[WhiteElo "2256"]
[BlackElo "2568"]
[Result "0-1"]
[Round "04"]
[TimeControl "180+1"]
[Date "2022.05.10"]
[WhiteClock "0:00:03"]
[BlackClock "0:00:40"]

1. e4 {[%clk 0:02:59]}  c5 {[%clk 0:02:52]} 2. Nf3 {[%clk 0:02:59]}  e6 {[%clk 0:02:52]} 3. c3 {[%clk 0:02:59]}  Nf6 {[%clk 0:02:52]} 4. e5 {[%clk 0:03:00]}  Nd5 {[%clk 0:02:53]} 5. b4 {[%clk 0:03:00]}  b6 {[%clk 0:02:42]} 6. b5 {[%clk 0:02:40]}  d6 {[%clk 0:02:40]} 7. d4 {[%clk 0:02:34]}  cxd4 {[%clk 0:02:28]} 8. cxd4 {[%clk 0:02:33]}  Bb7 {[%clk 0:02:23]} 9. Nbd2 {[%clk 0:02:11]}  Nd7 {[%clk 0:02:14]} 10. exd6 {[%clk 0:01:56]}  Bxd6 {[%clk 0:01:54]} 11. Ne4 {[%clk 0:01:57]}  Bb4+ {[%clk 0:01:53]} 12. Bd2 {[%clk 0:01:54]}  f5 {[%clk 0:01:48]} 13. Neg5 {[%clk 0:01:27]}  Qf6 {[%clk 0:01:45]} 14. Bxb4 {[%clk 0:01:20]}  Nxb4 {[%clk 0:01:46]} 15. Bc4 {[%clk 0:01:19]}  Rc8 {[%clk 0:01:40]} 16. Qe2 {[%clk 0:00:48]}  Bd5 {[%clk 0:01:08]} 17. Rc1 {[%clk 0:00:47]}  h6 {[%clk 0:00:56]} 18. a3 {[%clk 0:00:28]}  hxg5 {[%clk 0:00:49]} 19. axb4 {[%clk 0:00:27]}  g4 {[%clk 0:00:49]} 20. Ne5 {[%clk 0:00:25]}  Nxe5 {[%clk 0:00:47]} 21. dxe5 {[%clk 0:00:24]}  Qh6 {[%clk 0:00:47]} 22. Rc2 {[%clk 0:00:09]}  Bxg2 {[%clk 0:00:47]} 23. Rg1 {[%clk 0:00:07]}  Bf3 {[%clk 0:00:40]} 24. Qd2 {[%clk 0:00:04]}  Rd8 {[%clk 0:00:40]} 25. Qxh6 {[%clk 0:00:03]}  Rd1# {[%clk 0:00:40]} 0-1


[Site "https://www.chess.com"]

[Event "Titled Tuesday Blitz May 10 Late 2022"]
[White "Zhigalko, Sergei"]
[Black "Djokic, Mihailo"]
[WhiteFideId "13502956"]
[BlackFideId "976440"]
[WhiteElo "2662"]
[BlackElo "2202"]
[Result "1-0"]
[Round "04"]
[TimeControl "180+1"]
[Date "2022.05.10"]
[WhiteClock "0:00:02"]
[BlackClock "0:00:01"]

1. e4 {[%clk 0:03:00]}  c5 {[%clk 0:03:00]} 2. Nf3 {[%clk 0:03:00]}  d6 {[%clk 0:03:00]} 3. d4 {[%clk 0:02:59]}  cxd4 {[%clk 0:03:01]} 4. Qxd4 {[%clk 0:03:00]}  a6 {[%clk 0:03:01]} 5. Bc4 {[%clk 0:02:59]}  Nc6 {[%clk 0:03:01]} 6. Qd3 {[%clk 0:02:59]}  g6 {[%clk 0:03:00]} 7. Nc3 {[%clk 0:02:59]}  Bg7 {[%clk 0:03:00]} 8. Bb3 {[%clk 0:03:00]}  Nf6 {[%clk 0:03:00]} 9. Bg5 {[%clk 0:03:00]}  O-O {[%clk 0:03:00]} 10. O-O-O {[%clk 0:02:58]}  Bg4 {[%clk 0:02:58]} 11. h3 {[%clk 0:02:58]}  Bxf3 {[%clk 0:02:57]} 12. Qxf3 {[%clk 0:02:59]}  Qa5 {[%clk 0:02:57]} 13. h4 {[%clk 0:02:59]}  Ne5 {[%clk 0:02:53]} 14. Qh3 {[%clk 0:02:45]}  h5 {[%clk 0:02:45]} 15. Kb1 {[%clk 0:02:29]}  Rac8 {[%clk 0:02:41]} 16. Bxf6 {[%clk 0:02:29]}  Bxf6 {[%clk 0:02:36]} 17. Nd5 {[%clk 0:02:29]}  Kg7 {[%clk 0:02:35]} 18. Nxf6 {[%clk 0:02:04]}  Kxf6 {[%clk 0:02:35]} 19. Rd5 {[%clk 0:01:29]}  Qb6 {[%clk 0:02:27]} 20. Qg3 {[%clk 0:01:28]}  Kg7 {[%clk 0:02:16]} 21. Rhd1 {[%clk 0:01:28]}  Ng4 {[%clk 0:02:12]} 22. R5d2 {[%clk 0:01:19]}  Rc5 {[%clk 0:02:09]} 23. f3 {[%clk 0:01:12]}  Nf6 {[%clk 0:02:02]} 24. Qe1 {[%clk 0:00:53]}  a5 {[%clk 0:01:53]} 25. Qe2 {[%clk 0:00:43]}  Rb5 {[%clk 0:01:38]} 26. a4 {[%clk 0:00:26]}  Rb4 {[%clk 0:01:26]} 27. e5 {[%clk 0:00:24]}  dxe5 {[%clk 0:01:24]} 28. Qxe5 {[%clk 0:00:23]}  Rxh4 {[%clk 0:00:33]} 29. Qxe7 {[%clk 0:00:10]}  Qb4 {[%clk 0:00:33]} 30. Qe5 {[%clk 0:00:09]}  Qf4 {[%clk 0:00:32]} 31. Qxa5 {[%clk 0:00:08]}  Rh2 {[%clk 0:00:29]} 32. Qb6 {[%clk 0:00:07]}  Qb8 {[%clk 0:00:16]} 33. a5 {[%clk 0:00:06]}  h4 {[%clk 0:00:16]} 34. Rd6 {[%clk 0:00:06]}  Ng8 {[%clk 0:00:15]} 35. Qd4+ {[%clk 0:00:06]}  Kh7 {[%clk 0:00:13]} 36. Rd7 {[%clk 0:00:07]}  Nh6 {[%clk 0:00:13]} 37. Bd5 {[%clk 0:00:06]}  Rxg2 {[%clk 0:00:13]} 38. Qxh4 {[%clk 0:00:06]}  Rh2 {[%clk 0:00:12]} 39. Qd4 {[%clk 0:00:06]}  Qg3 {[%clk 0:00:11]} 40. Bxb7 {[%clk 0:00:06]}  Nf5 {[%clk 0:00:11]} 41. Qd3 {[%clk 0:00:06]}  Qf2 {[%clk 0:00:08]} 42. a6 {[%clk 0:00:06]}  Kg7 {[%clk 0:00:09]} 43. Be4 {[%clk 0:00:06]}  Ne3 {[%clk 0:00:08]} 44. Qd4+ {[%clk 0:00:06]}  Kg8 {[%clk 0:00:08]} 45. Rc1 {[%clk 0:00:06]}  Rh5 {[%clk 0:00:05]} 46. Rd8 {[%clk 0:00:05]}  Rxd8 {[%clk 0:00:04]} 47. Qxd8+ {[%clk 0:00:05]}  Kh7 {[%clk 0:00:05]} 48. a7 {[%clk 0:00:05]}  Rh1 {[%clk 0:00:02]} 49. Rxh1+ {[%clk 0:00:02]}  Qh2 {[%clk 0:00:02]} 50. Rxh2+ {[%clk 0:00:01]}  Kg7 {[%clk 0:00:01]} 51. Qh8# {[%clk 0:00:02]} 1-0


[Site "https://www.chess.com"]

[Event "Titled Tuesday Blitz May 10 Late 2022"]
[White "Aggelis, Nikolaos"]
[Black "Melkumyan, Hrant"]
[WhiteFideId "4213220"]
[BlackFideId "13302485"]
[WhiteElo "2154"]
[BlackElo "2604"]
[Result "0-1"]
[Round "05"]
[TimeControl "180+1"]
[Date "2022.05.10"]
[WhiteClock "0:00:06"]
[BlackClock "0:00:25"]

1. d4 {[%clk 0:03:00]}  d5 {[%clk 0:02:58]} 2. Nf3 {[%clk 0:03:01]}  Nf6 {[%clk 0:02:58]} 3. g3 {[%clk 0:03:01]}  Bf5 {[%clk 0:02:56]} 4. Bg2 {[%clk 0:03:00]}  c6 {[%clk 0:02:56]} 5. O-O {[%clk 0:02:56]}  e6 {[%clk 0:02:57]} 6. Nbd2 {[%clk 0:02:51]}  h6 {[%clk 0:02:57]} 7. c4 {[%clk 0:02:51]}  Nbd7 {[%clk 0:02:56]} 8. b3 {[%clk 0:02:51]}  Bd6 {[%clk 0:02:56]} 9. Bb2 {[%clk 0:02:51]}  O-O {[%clk 0:02:56]} 10. Ne5 {[%clk 0:02:51]}  Qa5 {[%clk 0:02:52]} 11. a3 {[%clk 0:02:47]}  Rfc8 {[%clk 0:02:48]} 12. b4 {[%clk 0:02:47]}  Qd8 {[%clk 0:02:48]} 13. Nd3 {[%clk 0:02:23]}  Bxd3 {[%clk 0:02:43]} 14. exd3 {[%clk 0:02:23]}  a5 {[%clk 0:02:44]} 15. c5 {[%clk 0:02:15]}  Bc7 {[%clk 0:02:39]} 16. Nb3 {[%clk 0:02:14]}  a4 {[%clk 0:02:20]} 17. Nd2 {[%clk 0:02:13]}  Qf8 {[%clk 0:02:17]} 18. Re1 {[%clk 0:02:08]}  g6 {[%clk 0:02:17]} 19. Nf3 {[%clk 0:01:59]}  Bd8 {[%clk 0:02:13]} 20. Ne5 {[%clk 0:01:59]}  Nb8 {[%clk 0:02:04]} 21. Rc1 {[%clk 0:01:54]}  Na6 {[%clk 0:02:04]} 22. Rc2 {[%clk 0:01:32]}  Nc7 {[%clk 0:02:04]} 23. Qa1 {[%clk 0:01:32]}  Nb5 {[%clk 0:02:04]} 24. Bc1 {[%clk 0:01:32]}  Be7 {[%clk 0:01:55]} 25. Rce2 {[%clk 0:01:31]}  Rd8 {[%clk 0:01:55]} 26. Bh3 {[%clk 0:01:19]}  Nc7 {[%clk 0:01:51]} 27. Qb2 {[%clk 0:01:13]}  Nh7 {[%clk 0:01:46]} 28. Qd2 {[%clk 0:01:09]}  Bg5 {[%clk 0:01:45]} 29. f4 {[%clk 0:01:08]}  Bf6 {[%clk 0:01:42]} 30. Qe3 {[%clk 0:00:52]}  Qg7 {[%clk 0:01:41]} 31. Bb2 {[%clk 0:00:50]}  Nb5 {[%clk 0:01:37]} 32. Kh1 {[%clk 0:00:49]}  Re8 {[%clk 0:01:37]} 33. Qf2 {[%clk 0:00:47]}  Rad8 {[%clk 0:01:36]} 34. Bg2 {[%clk 0:00:42]}  h5 {[%clk 0:01:36]} 35. h3 {[%clk 0:00:39]}  Qh8 {[%clk 0:01:33]} 36. Kh2 {[%clk 0:00:39]}  Bg7 {[%clk 0:01:32]} 37. Bh1 {[%clk 0:00:32]}  Nf6 {[%clk 0:01:32]} 38. Bg2 {[%clk 0:00:31]}  Kf8 {[%clk 0:01:28]} 39. Kh1 {[%clk 0:00:31]}  Ng8 {[%clk 0:01:28]} 40. Kg1 {[%clk 0:00:26]}  Ne7 {[%clk 0:01:29]} 41. Kh2 {[%clk 0:00:24]}  Nf5 {[%clk 0:01:28]} 42. Bf3 {[%clk 0:00:22]}  Bf6 {[%clk 0:01:29]} 43. Bg2 {[%clk 0:00:21]}  Kg8 {[%clk 0:01:18]} 44. Kg1 {[%clk 0:00:21]}  Rc8 {[%clk 0:01:13]} 45. Kh2 {[%clk 0:00:20]}  Nc7 {[%clk 0:01:06]} 46. Kg1 {[%clk 0:00:20]}  Na6 {[%clk 0:01:06]} 47. Qf3 {[%clk 0:00:18]}  Nb8 {[%clk 0:01:06]} 48. Bh1 {[%clk 0:00:17]}  Rcd8 {[%clk 0:01:05]} 49. g4 {[%clk 0:00:18]}  Nh4 {[%clk 0:00:58]} 50. Qg3 {[%clk 0:00:17]}  Nd7 {[%clk 0:00:57]} 51. Rh2 {[%clk 0:00:14]}  Nxe5 {[%clk 0:00:49]} 52. fxe5 {[%clk 0:00:14]}  Bg5 {[%clk 0:00:46]} 53. Bc1 {[%clk 0:00:14]}  Qh6 {[%clk 0:00:44]} 54. Bxg5 {[%clk 0:00:13]}  Qxg5 {[%clk 0:00:44]} 55. Qe3 {[%clk 0:00:13]}  Qxe3+ {[%clk 0:00:31]} 56. Rxe3 {[%clk 0:00:14]}  Kg7 {[%clk 0:00:32]} 57. Bf3 {[%clk 0:00:14]}  hxg4 {[%clk 0:00:30]} 58. Bxg4 {[%clk 0:00:12]}  Rb8 {[%clk 0:00:28]} 59. Bd1 {[%clk 0:00:13]}  Nf5 {[%clk 0:00:27]} 60. Ree2 {[%clk 0:00:11]}  Nxd4 {[%clk 0:00:27]} 61. Rb2 {[%clk 0:00:11]}  b5 {[%clk 0:00:26]} 62. cxb6 {[%clk 0:00:10]}  Rxb6 {[%clk 0:00:27]} 63. Rhf2 {[%clk 0:00:10]}  c5 {[%clk 0:00:25]} 64. Bxa4 {[%clk 0:00:09]}  Ra8 {[%clk 0:00:24]} 65. Bd1 {[%clk 0:00:06]}  Rxa3 {[%clk 0:00:24]} 66. bxc5 {[%clk 0:00:06]}  Rxb2 {[%clk 0:00:24]} 67. Rxb2 {[%clk 0:00:07]}  Ra1 {[%clk 0:00:24]} 68. Rb4 {[%clk 0:00:05]}  Rxd1+ {[%clk 0:00:24]} 69. Kf2 {[%clk 0:00:05]}  Nc6 {[%clk 0:00:25]} 70. Rb6 {[%clk 0:00:06]}  Nxe5 {[%clk 0:00:25]} 71. d4 {[%clk 0:00:06]}  Rxd4 {[%clk 0:00:25]} 72. c6 {[%clk 0:00:06]}  Rc4 {[%clk 0:00:25]} 0-1


[Site "https://www.chess.com"]

[Event "Titled Tuesday Blitz May 10 Late 2022"]
[White "Ansh M Shah"]
[Black "Pinheiro, Iung Alicio de O."]
[WhiteFideId "25033379"]
[BlackFideId "2104350"]
[WhiteElo "1819"]
[BlackElo "2283"]
[Result "0-1"]
[Round "05"]
[TimeControl "180+1"]
[Date "2022.05.11"]
[WhiteClock "0:00:04"]
[BlackClock "0:00:07"]

1. d4 {[%clk 0:02:56]}  Nf6 {[%clk 0:02:18]} 2. c4 {[%clk 0:02:57]}  g6 {[%clk 0:02:17]} 3. Nf3 {[%clk 0:02:52]}  Bg7 {[%clk 0:02:16]} 4. g3 {[%clk 0:02:51]}  O-O {[%clk 0:02:16]} 5. Bg2 {[%clk 0:02:50]}  d6 {[%clk 0:02:10]} 6. O-O {[%clk 0:02:51]}  c6 {[%clk 0:02:10]} 7. Nc3 {[%clk 0:02:49]}  Qa5 {[%clk 0:02:09]} 8. e4 {[%clk 0:02:49]}  Qh5 {[%clk 0:02:03]} 9. Re1 {[%clk 0:02:22]}  Bg4 {[%clk 0:01:53]} 10. Qd3 {[%clk 0:02:14]}  e5 {[%clk 0:01:51]} 11. d5 {[%clk 0:02:07]}  Na6 {[%clk 0:01:48]} 12. Nd2 {[%clk 0:01:53]}  Nb4 {[%clk 0:01:35]} 13. Qb1 {[%clk 0:01:50]}  cxd5 {[%clk 0:01:08]} 14. cxd5 {[%clk 0:01:38]}  Rac8 {[%clk 0:01:04]} 15. f3 {[%clk 0:01:36]}  Bd7 {[%clk 0:00:55]} 16. a3 {[%clk 0:01:35]}  Na6 {[%clk 0:00:56]} 17. Nb3 {[%clk 0:01:28]}  Ne8 {[%clk 0:00:50]} 18. Be3 {[%clk 0:01:23]}  b6 {[%clk 0:00:49]} 19. Qd3 {[%clk 0:01:23]}  Nc5 {[%clk 0:00:47]} 20. Nxc5 {[%clk 0:01:23]}  bxc5 {[%clk 0:00:46]} 21. b4 {[%clk 0:01:21]}  c4 {[%clk 0:00:32]} 22. Qd2 {[%clk 0:01:11]}  a6 {[%clk 0:00:31]} 23. Qf2 {[%clk 0:00:57]}  f5 {[%clk 0:00:30]} 24. Qe2 {[%clk 0:00:55]}  f4 {[%clk 0:00:29]} 25. g4 {[%clk 0:00:53]}  Qh4 {[%clk 0:00:27]} 26. Bf2 {[%clk 0:00:52]}  Qe7 {[%clk 0:00:27]} 27. Bf1 {[%clk 0:00:42]}  Bf6 {[%clk 0:00:27]} 28. Qb2 {[%clk 0:00:37]}  Bh4 {[%clk 0:00:26]} 29. Bxh4 {[%clk 0:00:38]}  Qxh4 {[%clk 0:00:27]} 30. Qf2 {[%clk 0:00:38]}  Qe7 {[%clk 0:00:27]} 31. Rec1 {[%clk 0:00:34]}  h5 {[%clk 0:00:26]} 32. h3 {[%clk 0:00:34]}  Kg7 {[%clk 0:00:26]} 33. Ne2 {[%clk 0:00:29]}  hxg4 {[%clk 0:00:22]} 34. hxg4 {[%clk 0:00:29]}  Rh8 {[%clk 0:00:22]} 35. Bg2 {[%clk 0:00:29]}  Nf6 {[%clk 0:00:22]} 36. Qa7 {[%clk 0:00:25]}  Kh6 {[%clk 0:00:15]} 37. Kf2 {[%clk 0:00:23]}  Kg5 {[%clk 0:00:14]} 38. Rh1 {[%clk 0:00:22]}  Ra8 {[%clk 0:00:11]} 39. Qb6 {[%clk 0:00:16]}  Rhb8 {[%clk 0:00:12]} 40. Qa5 {[%clk 0:00:16]}  Bxg4 {[%clk 0:00:09]} 41. fxg4 {[%clk 0:00:15]}  Nxg4+ {[%clk 0:00:09]} 42. Ke1 {[%clk 0:00:16]}  Qa7 {[%clk 0:00:09]} 43. Rf1 {[%clk 0:00:11]}  Qe3 {[%clk 0:00:09]} 44. Rf3 {[%clk 0:00:12]}  Qa7 {[%clk 0:00:06]} 45. Qa4 {[%clk 0:00:11]}  Rh8 {[%clk 0:00:04]} 46. Kd2 {[%clk 0:00:11]}  Ne3 {[%clk 0:00:04]} 47. Rg1 {[%clk 0:00:10]}  Kf6 {[%clk 0:00:03]} 48. Bf1 {[%clk 0:00:09]}  c3+ {[%clk 0:00:03]} 49. Nxc3 {[%clk 0:00:09]}  Qd4+ {[%clk 0:00:03]} 50. Bd3 {[%clk 0:00:07]}  Rac8 {[%clk 0:00:03]} 51. Qb3 {[%clk 0:00:06]}  Nc4+ {[%clk 0:00:03]} 52. Kc2 {[%clk 0:00:05]}  Ne3+ {[%clk 0:00:04]} 53. Kd2 {[%clk 0:00:06]}  Rc7 {[%clk 0:00:04]} 54. Rf2 {[%clk 0:00:04]}  Rhc8 {[%clk 0:00:04]} 55. Rgf1 {[%clk 0:00:03]}  Rxc3 {[%clk 0:00:04]} 56. Rxf4+ {[%clk 0:00:03]}  exf4 {[%clk 0:00:05]} 57. Rxf4+ {[%clk 0:00:04]}  Ke5 {[%clk 0:00:05]} 58. Qb2 {[%clk 0:00:02]}  Qxd3+ {[%clk 0:00:05]} 59. Ke1 {[%clk 0:00:02]}  Qd1+ {[%clk 0:00:05]} 60. Kf2 {[%clk 0:00:03]}  Qc2+ {[%clk 0:00:05]} 61. Qxc2 {[%clk 0:00:03]}  Rxc2+ {[%clk 0:00:06]} 62. Kxe3 {[%clk 0:00:04]}  R8c3# {[%clk 0:00:07]} 0-1


[Site "https://www.chess.com"]

[Event "Titled Tuesday Blitz May 10 Late 2022"]
[White "Antonova, Nadezhda"]
[Black "Malka, Samuel"]
[WhiteFideId "14700182"]
[BlackFideId "20643675"]
[WhiteElo "1743"]
[BlackElo "2555"]
[Result "0-1"]
[Round "05"]
[TimeControl "180+1"]
[Date "2022.05.11"]
[WhiteClock "0:00:04"]
[BlackClock "0:00:15"]

1. Nf3 {[%clk 0:02:48]}  Nf6 {[%clk 0:02:59]} 2. b3 {[%clk 0:02:46]}  g6 {[%clk 0:02:47]} 3. Bb2 {[%clk 0:02:43]}  Bg7 {[%clk 0:02:47]} 4. g3 {[%clk 0:02:43]}  O-O {[%clk 0:02:46]} 5. Bg2 {[%clk 0:02:43]}  c5 {[%clk 0:02:47]} 6. c4 {[%clk 0:02:42]}  Nc6 {[%clk 0:02:14]} 7. O-O {[%clk 0:02:40]}  b6 {[%clk 0:02:04]} 8. d4 {[%clk 0:02:34]}  cxd4 {[%clk 0:02:05]} 9. Nxd4 {[%clk 0:02:34]}  Bb7 {[%clk 0:02:05]} 10. Nc3 {[%clk 0:02:26]}  Qb8 {[%clk 0:01:50]} 11. e3 {[%clk 0:02:11]}  Nxd4 {[%clk 0:01:43]} 12. exd4 {[%clk 0:02:11]}  Bxg2 {[%clk 0:01:43]} 13. Kxg2 {[%clk 0:02:10]}  d5 {[%clk 0:01:40]} 14. Nxd5 {[%clk 0:01:46]}  Nxd5 {[%clk 0:01:38]} 15. cxd5 {[%clk 0:01:46]}  Qb7 {[%clk 0:01:34]} 16. Qf3 {[%clk 0:01:46]}  Rfd8 {[%clk 0:01:25]} 17. Rfe1 {[%clk 0:01:38]}  Bf6 {[%clk 0:01:25]} 18. Rac1 {[%clk 0:01:22]}  Rxd5 {[%clk 0:01:24]} 19. Rc4 {[%clk 0:01:09]}  Rad8 {[%clk 0:01:06]} 20. Rec1 {[%clk 0:01:08]}  R8d7 {[%clk 0:00:51]} 21. a4 {[%clk 0:00:52]}  Kg7 {[%clk 0:00:47]} 22. Rc6 {[%clk 0:00:37]}  Bxd4 {[%clk 0:00:36]} 23. Bxd4+ {[%clk 0:00:34]}  Rxd4 {[%clk 0:00:37]} 24. R1c3 {[%clk 0:00:29]}  R4d6 {[%clk 0:00:25]} 25. R6c4 {[%clk 0:00:22]}  Qxf3+ {[%clk 0:00:23]} 26. Rxf3 {[%clk 0:00:13]}  e6 {[%clk 0:00:20]} 27. Rfc3 {[%clk 0:00:11]}  Kf6 {[%clk 0:00:19]} 28. Rc7 {[%clk 0:00:11]}  Ke7 {[%clk 0:00:19]} 29. R7c4 {[%clk 0:00:08]}  h5 {[%clk 0:00:19]} 30. h4 {[%clk 0:00:08]}  Rd3 {[%clk 0:00:17]} 31. b4 {[%clk 0:00:06]}  Rxc3 {[%clk 0:00:16]} 32. Rxc3 {[%clk 0:00:06]}  Rd4 {[%clk 0:00:16]} 33. Rc7+ {[%clk 0:00:06]}  Rd7 {[%clk 0:00:16]} 34. Rc4 {[%clk 0:00:05]}  Kd8 {[%clk 0:00:17]} 35. b5 {[%clk 0:00:05]}  Rd5 {[%clk 0:00:16]} 36. Rf4 {[%clk 0:00:04]}  Ke7 {[%clk 0:00:16]} 37. Rb4 {[%clk 0:00:05]}  Kd6 {[%clk 0:00:16]} 38. Rc4 {[%clk 0:00:05]}  Kd7 {[%clk 0:00:16]} 39. Kh3 {[%clk 0:00:04]}  f5 {[%clk 0:00:14]} 40. Kg2 {[%clk 0:00:04]}  e5 {[%clk 0:00:15]} 41. Kf3 {[%clk 0:00:04]}  Rd4 {[%clk 0:00:13]} 42. Rxd4+ {[%clk 0:00:03]}  exd4 {[%clk 0:00:14]} 43. Kf4 {[%clk 0:00:03]}  Kd6 {[%clk 0:00:15]} 44. Kg5 {[%clk 0:00:04]}  d3 {[%clk 0:00:15]} 0-1


[Site "https://www.chess.com"]

[Event "Titled Tuesday Blitz May 10 Late 2022"]
[White "Avalos Parra, Joao"]
[Black "Svicevic, Rastko"]
[WhiteFideId "3402541"]
[BlackFideId "916315"]
[WhiteElo "2173"]
[BlackElo "2132"]
[Result "1-0"]
[Round "05"]
[TimeControl "180+1"]
[Date "2022.05.11"]
[WhiteClock "0:01:00"]
[BlackClock "0:00:30"]

1. d4 {[%clk 0:03:00]}  d5 {[%clk 0:02:58]} 2. c4 {[%clk 0:03:01]}  e6 {[%clk 0:02:58]} 3. Nf3 {[%clk 0:03:01]}  f5 {[%clk 0:02:57]} 4. g3 {[%clk 0:03:01]}  c6 {[%clk 0:02:57]} 5. Bg2 {[%clk 0:03:02]}  Nf6 {[%clk 0:02:57]} 6. O-O {[%clk 0:03:02]}  Bd6 {[%clk 0:02:58]} 7. b3 {[%clk 0:03:02]}  Qe7 {[%clk 0:02:56]} 8. Bf4 {[%clk 0:02:59]}  O-O {[%clk 0:02:54]} 9. Nbd2 {[%clk 0:02:56]}  Ne4 {[%clk 0:02:52]} 10. Bxd6 {[%clk 0:02:54]}  Qxd6 {[%clk 0:02:50]} 11. Ne5 {[%clk 0:02:55]}  Nd7 {[%clk 0:02:50]} 12. Ndf3 {[%clk 0:02:53]}  a5 {[%clk 0:02:24]} 13. Nxd7 {[%clk 0:02:48]}  Bxd7 {[%clk 0:02:25]} 14. Ne5 {[%clk 0:02:49]}  c5 {[%clk 0:02:17]} 15. Bxe4 {[%clk 0:02:47]}  fxe4 {[%clk 0:01:58]} 16. e3 {[%clk 0:02:46]}  Bc6 {[%clk 0:01:49]} 17. Rc1 {[%clk 0:02:28]}  Rad8 {[%clk 0:01:45]} 18. cxd5 {[%clk 0:02:28]}  Bb5 {[%clk 0:01:23]} 19. Re1 {[%clk 0:02:15]}  cxd4 {[%clk 0:01:19]} 20. Qxd4 {[%clk 0:02:02]}  exd5 {[%clk 0:01:18]} 21. Rc5 {[%clk 0:01:54]}  Qf6 {[%clk 0:01:14]} 22. Qb2 {[%clk 0:01:33]}  Rfe8 {[%clk 0:01:05]} 23. Rxb5 {[%clk 0:01:33]}  Rxe5 {[%clk 0:01:05]} 24. Rxb7 {[%clk 0:01:28]}  Rf8 {[%clk 0:01:01]} 25. Re2 {[%clk 0:01:23]}  Qc6 {[%clk 0:00:56]} 26. Qxe5 {[%clk 0:01:19]}  Qxb7 {[%clk 0:00:54]} 27. Rd2 {[%clk 0:01:16]}  Rd8 {[%clk 0:00:55]} 28. Qe6+ {[%clk 0:01:11]}  Kh8 {[%clk 0:00:47]} 29. Qxe4 {[%clk 0:01:09]}  h6 {[%clk 0:00:30]} 30. Qd4 {[%clk 0:01:00]} 1-0


[Site "https://www.chess.com"]